fUST/lending_fUST_20260201
["ID","MTS","AMOUNT","RATE_DAILY","PERIOD"]
[404197508,1769940646077,-349.0,0.0003,7]
[404197509,1769940646087,-349.0,0.0003,7]
[404197510,1769940646096,-349.0,0.0003,7]
[404197511,1769940646106,-349.0,0.0003,7]
[404197512,1769940646115,-349.0,0.0003,7]
[404197513,1769940646125,-349.0,0.0003,7]
[404197514,1769940646134,-349.0,0.0003,7]
[404197515,1769940646146,-349.0,0.0003,7]
[404197516,1769940646156,-349.0,0.0003,7]
[404197517,1769940646165,-349.0,0.0003,7]
[404197518,1769940646175,-349.0,0.0003,7]
[404197519,1769940646184,-349.0,0.0003,7]
[404197520,1769940646193,-349.0,0.0003,7]
[404197521,1769940646203,-349.0,0.0003,7]
[404197522,1769940646212,-349.0,0.0003,7]
[404197523,1769940646222,-349.0,0.0003,7]
[404197524,1769940646231,-349.0,0.0003,7]
[404197525,1769940646241,-349.0,0.0003,7]
[404197526,1769940646254,-349.0,0.0003,7]
[404197527,1769940646274,-349.0,0.0003,7]
[404197528,1769940646285,-349.0,0.0003,7]
[404197529,1769940646294,-349.0,0.0003,7]
[404197530,1769940646303,-349.0,0.0003,7]
[404197531,1769940646313,-349.0,0.0003,7]
[404197532,1769940646323,-349.0,0.0003,7]
[404197533,1769940646333,-349.0,0.0003,7]
[404197535,1769940646342,-349.0,0.0003,7]
[404197537,1769940646351,-349.0,0.0003,7]
[404197538,1769940646360,-349.0,0.0003,7]
[404197539,1769940646369,-349.0,0.0003,7]
[404197540,1769940646379,-349.0,0.0003,7]
[404197541,1769940646388,-121.74444218,0.0003,7]
[404197542,1769940646402,-227.25555782,0.0003,7]
[404197543,1769940646411,-349.0,0.0003,7]
[404197544,1769940646421,-349.0,0.0003,7]
[404197545,1769940646431,-349.0,0.0003,7]
[404197546,1769940646440,-225.43503474,0.0003,7]
[404197547,1769940646450,-168.13478272,0.0003,7]
[404197548,1769940646459,-166.0,0.0003,7]
[404197549,1769940646468,-351.55475886,0.0003,7]
[404197550,1769940646479,-349.0,0.0003,7]
[404197551,1769940646489,-166.0,0.0003,7]
[404197552,1769940646498,-164.0,0.0003,7]
[404197553,1769940646508,-164.0,0.0003,7]
[404197554,1769940646517,-153.0,0.0003,7]
[404197555,1769940646526,-200.93614749,0.00030178,60]
[404197556,1769940646535,-38.87159754,0.00030178,60]
[404197560,1769940720588,336.671,0.0003,120]
[404197568,1769940908154,2000.0,0.00037535,31]
[404197569,1769940908777,2074.0,0.00037535,119]
[404197570,1769940910139,151.0,0.00037535,20]
[404197571,1769940910686,151.0,0.00037535,20]
[404197572,1769940910730,250.0,0.00037535,31]
[404197573,1769940910889,1888.0,0.00037535,31]
[404197574,1769940910992,250.0,0.00037535,31]
[404197575,1769940911328,151.0,0.00037535,20]
[404197576,1769940911553,1957.856,0.00037535,20]
[404197577,1769940911862,250.0,0.00037535,119]
[404197578,1769940911901,250.0,0.00037535,119]
[404197579,1769940911998,151.0,0.00037535,20]
[404197580,1769940912193,2030.296672,0.00037535,20]
[404197582,1769940912522,250.0,0.00037535,119]
[404197583,1769940912560,250.0,0.00037535,119]
[404197584,1769940912828,2105.41764886,0.00037535,20]
[404197585,1769940913161,250.0,0.00037535,119]
[404197586,1769940913458,2183.31810187,0.00037535,20]
[404197587,1769940914241,151.0,0.00037535,20]
[404197588,1769940914284,2264.10087164,0.00037535,20]
[404197589,1769940914856,2347.87260389,0.00037535,20]
[404197590,1769940915284,500.0,0.00037535,31]
[404197591,1769940915531,2434.74389024,0.00037535,20]
[404197592,1769940915927,500.0,0.00037535,119]
[404197593,1769940916253,2524.82941417,0.00037535,20]
[404197594,1769940917099,500.0,0.00037535,119]
[404197595,1769940918214,500.0,0.00037535,80]
[404197596,1769940918830,500.0,0.00037535,118]
[404197597,1769940919444,500.0,0.00037535,73]
[404197598,1769940920079,500.0,0.00037535,73]
[404197599,1769940920722,500.0,0.00037535,90]
[404197600,1769940921863,500.0,0.00037535,30]
[404197601,1769940922491,500.0,0.00037535,20]
[404197602,1769940923122,500.0,0.00037535,20]
[404197603,1769940923771,500.0,0.00037535,20]
[404197604,1769940924041,414.0,0.00037535,31]
[404197605,1769940924437,500.0,0.00037535,20]
[404197606,1769940925111,429.318,0.00037535,119]
[404197607,1769940925588,500.0,0.00037535,20]
[404197608,1769940926018,429.318,0.00037535,119]
[404197609,1769940926249,500.0,0.00037535,20]
[404197610,1769940927361,500.0,0.00037535,20]
[404197611,1769940928028,500.0,0.00037535,20]
[404197612,1769940936001,250.0,0.00037535,31]
[404197613,1769940937206,250.0,0.00037535,119]
[404197614,1769940938472,250.0,0.00037535,119]
[404197616,1769940948305,151.0,0.00037535,31]
[404197617,1769940948986,156.587,0.00037535,119]
[404197618,1769940949587,162.380719,0.00037535,119]
[404197619,1769940950244,168.3888056,0.00037535,80]
[404197620,1769940950868,174.61919141,0.00037535,118]
[404197621,1769940951699,181.08010149,0.00037535,73]
[404197622,1769940952364,187.78006525,0.00037535,73]
[404197623,1769940952999,194.72792766,0.00037535,90]
[404197624,1769940953662,201.93286099,0.00037535,30]
[404197625,1769940954309,209.40437684,0.00037535,20]
[404197626,1769940955153,217.15233878,0.00037535,20]
[404197627,1769940955791,225.18697532,0.00037535,20]
[404197628,1769940956429,233.51889341,0.00037535,20]
[404197629,1769940957064,242.15909246,0.00037535,20]
[404197630,1769940957680,251.11897888,0.00037535,20]
[404197631,1769940958296,251.11897888,0.00037535,20]
[404197640,1769941162267,251.87452986,0.0002882,120]
[404197643,1769941212965,992.33103192,0.00037596,119]
[404197644,1769941216238,266.60191831,0.00037596,31]
[404197645,1769941218575,156.86040915,0.00037596,119]
[404197650,1769941266733,335.85792066,0.00037596,30]
[404197653,1769941586506,500.0,0.00030002,120]
[404197654,1769941701526,393.31972128,0.0001,7]
[404197691,1769941837917,-232.91,0.000132,2]
[404197692,1769941837927,-607.0,0.000132,2]
[404197693,1769941837937,-204.0,0.00013205,2]
[404197695,1769941837946,-300.0,0.00013272,2]
[404197696,1769941837955,-339.92501183,0.00013273,2]
[404197697,1769941837964,-517.8760171,0.00013273,2]
[404197698,1769941837973,-500.0,0.00013273,2]
[404197699,1769941837982,-505.92248654,0.00013273,2]
[404197700,1769941837994,-500.0,0.00013273,2]
[404197701,1769941838004,-500.0,0.00013273,2]
[404197702,1769941838012,-150.16357316,0.00013699,2]
[404197703,1769941838022,-500.0,0.00013699,2]
[404197704,1769941838031,-500.82078053,0.00013699,2]
[404197705,1769941838041,-500.0,0.00013699,2]
[404197706,1769941838050,-500.0,0.00013699,2]
[404197707,1769941838060,-500.0,0.00013699,2]
[404197708,1769941838068,-500.0,0.00013699,2]
[404197709,1769941838078,-500.0,0.00013821,2]
[404197710,1769941838087,-300.0,0.00013972,2]
[404197711,1769941838096,-300.0,0.00013972,2]
[404197712,1769941838105,-300.0,0.00013972,2]
[404197713,1769941838114,-300.0,0.00013972,2]
[404197714,1769941838123,-300.0,0.00013972,2]
[404197715,1769941838133,-300.0,0.00013972,2]
[404197716,1769941838142,-300.0,0.00013972,2]
[404197717,1769941838151,-300.0,0.00013972,2]
[404197718,1769941838160,-300.0,0.00013972,2]
[404197719,1769941838169,-300.0,0.00013972,2]
[404197720,1769941838178,-300.0,0.00013972,2]
[404197721,1769941838187,-300.0,0.00013972,2]
[404197722,1769941838196,-300.0,0.00013972,2]
[404197723,1769941838205,-300.0,0.00013972,2]
[404197724,1769941838215,-300.0,0.00013972,2]
[404197725,1769941838224,-500.0,0.00014247,2]
[404197726,1769941838233,-2386.76933042,0.00018752,2]
[404197727,1769941838243,-1041.66666667,0.00019814,2]
[404197728,1769941838252,-1000.0,0.00023506,30]
[404197729,1769941838260,-526.987566,0.00023759,2]
[404197730,1769941838269,-239.0096599,0.00025124,2]
[404197731,1769941838278,-293.89883631,0.00025124,2]
[404197732,1769941838288,-370.96574656,0.00025411,2]
[404197733,1769941838298,-548.39232668,0.000263,5]
[404197734,1769941838307,-418.0,0.0002694,2]
[404197735,1769941838316,-179.0,0.0002694,2]
[404197736,1769941838325,-955.08260095,0.00027096,2]
[404197737,1769941838334,-257.75900737,0.00027097,2]
[404197738,1769941838343,-436.5821738,0.00027342,2]
[404197739,1769941838357,-379.0278615,0.00028568,30]
[404197740,1769941838366,-379.0278615,0.00028568,30]
[404197741,1769941838375,-200.64591095,0.00028569,2]
[404197742,1769941838384,-500.0,0.00028569,2]
[404197743,1769941838393,-500.0,0.00028843,2]
[404197744,1769941838401,-2860.00305024,0.00029375,2]
[404197745,1769941838410,-500.0,0.00029378,2]
[404197746,1769941838419,-167.28969866,0.00029378,2]
[404197747,1769941838428,-500.0,0.00029378,2]
[404197748,1769941838439,-225.64360779,0.00029379,2]
[404197749,1769941838448,-902.57443118,0.00029379,2]
[404197750,1769941838458,-2030.79247015,0.00029379,2]
[404197751,1769941838467,-173.4145119,0.00029379,2]
[404197752,1769941838476,-693.6580476,0.00029379,2]
[404197753,1769941838485,-1560.73060709,0.00029379,2]
[404197754,1769941838496,-1748.0005413,0.00029379,2]
[404197755,1769941838505,-2658.48760358,0.00029474,2]
[404197756,1769941838514,-200.93614749,0.00029508,2]
[404197757,1769941838523,-251.67567476,0.00029508,2]
[404197758,1769941838532,-150.0,0.00029508,2]
[404197759,1769941838541,-150.0,0.00029508,2]
[404197760,1769941838550,-150.0,0.00029508,2]
[404197761,1769941838561,-251.20899636,0.00029508,2]
[404197762,1769941838570,-150.0,0.00029508,2]
[404197763,1769941838579,-150.0,0.00029508,2]
[404197764,1769941838589,-379.0278615,0.00029527,30]
[404197765,1769941838598,-379.0278615,0.00029527,30]
[404197766,1769941838607,-379.0278615,0.00029527,30]
[404197767,1769941838617,-238.07744408,0.00029645,2]
[404197768,1769941838628,-250.0,0.00029645,2]
[404197769,1769941838637,-150.0,0.00029645,2]
[404197770,1769941838646,-150.0,0.00029645,2]
[404197771,1769941838656,-150.0,0.00029725,2]
[404197772,1769941838665,-500.0,0.00029725,2]
[404197773,1769941838674,-201.59957773,0.00029725,2]
[404197774,1769941838683,-150.0,0.00029725,2]
[404197775,1769941838696,-297.31863615,0.00029754,5]
[404197776,1769941838705,-150.0,0.00029782,2]
[404197777,1769941838714,-150.0,0.00029782,2]
[404197778,1769941838723,-500.0,0.00029862,2]
[404197779,1769941838732,-310.878,0.00029899,24]
[404197780,1769941838742,-418.0,0.0002994,2]
[404197781,1769941838751,-179.0,0.0002994,2]
[404197782,1769941838760,-500.0,0.00029999,2]
[404197783,1769941838769,-500.0,0.00030002,2]
[404197784,1769941838779,-9915.0759941,0.00030003,2]
[404197785,1769941838788,-3466.8474805,0.00030003,2]
[404197786,1769941838797,-3226.6838012,0.00030003,2]
[404197787,1769941838806,-600.0,0.00030497,30]
[404197788,1769941838815,-238.244173,0.00030513,30]
[404197789,1769941838824,-150.0,0.00030726,60]
[404197790,1769941838832,-373.7225993,0.00030897,30]
[404197791,1769941838841,-194.8463565,0.00030897,30]
[404197792,1769941838851,-228.49912156,0.00030973,5]
[404197793,1769941838859,-229.17730731,0.00030999,2]
[404197794,1769941838868,-199.5698207,0.00030999,2]
[404197795,1769941838879,-500.0,0.00030999,120]
[404197796,1769941838888,-500.0,0.00030999,2]
[404197797,1769941838898,-21659.95468877,0.00031,120]
[404197798,1769941838907,-505.57828548,0.00031204,120]
[404197799,1769941838916,-3107.55651786,0.00031285,2]
[404197800,1769941838925,-2191.37573742,0.00031604,5]
[404197801,1769941838935,-151.0,0.00031719,7]
[404197802,1769941838943,-151.0,0.00031719,7]
[404197803,1769941838953,-151.0,0.00031719,7]
[404197804,1769941838962,-151.0,0.00031719,7]
[404197805,1769941838972,-153.0,0.00031719,30]
[404197806,1769941838982,-153.0,0.00031719,30]
[404197807,1769941838991,-194.8463565,0.00031719,30]
[404197808,1769941839000,-153.0,0.00031719,30]
[404197809,1769941839009,-389.5599197,0.00031719,30]
[404197810,1769941839019,-500.0,0.00032403,2]
[404197811,1769941839028,-966.14,0.00032855,10]
[404197812,1769941839037,-2003.38,0.00032865,10]
[404197813,1769941839046,-1508.46,0.00032866,10]
[404197814,1769941839055,-500.0,0.00032875,2]
[404197815,1769941839065,-500.0,0.00032875,2]
[404197816,1769941839074,-500.0,0.00032875,2]
[404197817,1769941839082,-500.0,0.00032875,2]
[404197818,1769941839091,-500.0,0.00032875,2]
[404197819,1769941839099,-100000.0,0.00032876,20]
[404197820,1769941839108,-151.0,0.00032876,7]
[404197821,1769941839117,-151.0,0.00032876,7]
[404197822,1769941839126,-151.0,0.00032876,7]
[404197823,1769941839135,-151.0,0.00032876,7]
[404197824,1769941839143,-475.0,0.00032877,120]
[404197825,1769941839153,-500.0,0.00032899,2]
[404197826,1769941839162,-500.0,0.00032899,2]
[404197827,1769941839171,-500.0,0.00032899,2]
[404197828,1769941839180,-500.0,0.00032899,2]
[404197829,1769941839188,-500.0,0.00032899,2]
[404197830,1769941839198,-500.0,0.00032899,2]
[404197831,1769941839207,-500.0,0.00032899,2]
[404197832,1769941839215,-500.0,0.00032899,2]
[404197833,1769941839225,-510.74219765,0.00032899,2]
[404197834,1769941839234,-218464.55382782,0.000329,5]
[404197835,1769941839243,-156.13,0.000329,7]
[404197836,1769941839252,-579.24,0.000329,30]
[404197837,1769941839263,-151.0,0.000329,19]
[404197838,1769941839272,-151.0,0.000329,7]
[404197839,1769941839280,-151.0,0.000329,7]
[404197840,1769941839289,-151.0,0.000329,7]
[404197841,1769941839297,-269.895639,0.000329,7]
[404197842,1769941839306,-418.0,0.0003294,2]
[404197843,1769941839316,-179.0,0.0003294,2]
[404197844,1769941839325,-7056.53799661,0.00033,2]
[404197845,1769941839334,-151.0,0.000331,13]
[404197846,1769941839343,-379.79997393,0.000332,117]
[404197847,1769941839352,-218.80188373,0.00033267,5]
[404197848,1769941839361,-151.0,0.000334,12]
[404197849,1769941839369,-720.0,0.00033547,30]
[404197850,1769941839378,-151.0,0.000336,11]
[404197851,1769941839387,-2212.3524944,0.00033848,2]
[404197852,1769941839396,-151.0,0.000339,15]
[404197853,1769941839405,-151.0,0.000342,14]
[404197854,1769941839413,-71009.36284095,0.000344,10]
[404197855,1769941839422,-151.0,0.000344,11]
[404197857,1769941839431,-151.0,0.000344,16]
[404197859,1769941839440,-151.0,0.000344,10]
[404197860,1769941839449,-151.0,0.000344,7]
[404197862,1769941839458,-151.0,0.000344,7]
[404197864,1769941839467,-151.0,0.000344,7]
[404197865,1769941839477,-487.0,0.000344,2]
[404197867,1769941839485,-487.0,0.000344,2]
[404197869,1769941839496,-487.0,0.000344,2]
[404197870,1769941839504,-487.0,0.000344,2]
[404197871,1769941839513,-487.0,0.000344,2]
[404197872,1769941839521,-487.0,0.000344,2]
[404197873,1769941839530,-487.0,0.000344,2]
[404197876,1769941839539,-487.0,0.000344,2]
[404197877,1769941839547,-487.0,0.000344,2]
[404197879,1769941839556,-487.0,0.000344,2]
[404197881,1769941839564,-487.0,0.000344,2]
[404197882,1769941839573,-487.0,0.000344,2]
[404197883,1769941839582,-487.0,0.000344,2]
[404197885,1769941839590,-487.0,0.000344,2]
[404197886,1769941839599,-750.37,0.000344,2]
[404197888,1769941839608,-515.79848456,0.00034575,5]
[404197890,1769941839620,-151.0,0.000347,18]
[404197892,1769941839629,-151.0,0.000347,12]
[404197894,1769941839638,-493.6425663,0.00034705,2]
[404197896,1769941839647,-160.647127,0.00034705,2]
[404197898,1769941839657,-820.36673391,0.0003471,120]
[404197900,1769941839667,-151.0,0.000349,16]
[404197902,1769941839676,-151.0,0.000349,12]
[404197904,1769941839688,-151.0,0.000349,15]
[404197906,1769941839696,-1000.0,0.00035,2]
[404197908,1769941839705,-500.0,0.00035,120]
[404197910,1769941839714,-151.0,0.000352,17]
[404197912,1769941839724,-151.0,0.000352,14]
[404197914,1769941839733,-671859.289,0.0003544,30]
[404197916,1769941839742,-151.0,0.0003544,7]
[404197918,1769941839750,-151.0,0.0003544,7]
[404197920,1769941839759,-151.0,0.0003544,7]
[404197922,1769941839768,-433.802771,0.000355,60]
[404197924,1769941839776,-303.661939,0.000355,60]
[404197926,1769941839785,-200.0,0.000356,120]
[404197928,1769941839794,-4997.95,0.000356,14]
[404197930,1769941839802,-2000.0,0.00035639,15]
[404197932,1769941839811,-526.987566,0.00035639,2]
[404197934,1769941839820,-265.32146151,0.000359,120]
[404197935,1769941839829,-315.21,0.0003594,2]
[404197937,1769941839837,-179.0,0.0003594,2]
[404197939,1769941839846,-1000.0,0.00036,2]
[404197941,1769941839855,-200.0,0.00036,120]
[404197942,1769941839864,-840.20174427,0.00036,30]
[404197943,1769941839872,-3000.0,0.000361,26]
[404197944,1769941839881,-3000.0,0.0003611,26]
[404197945,1769941839889,-3000.0,0.0003612,26]
[404197946,1769941839898,-3000.0,0.0003613,26]
[404197947,1769941839907,-3000.0,0.0003614,26]
[404197948,1769941839915,-3000.0,0.0003615,26]
[404197949,1769941839925,-3000.0,0.0003616,26]
[404197950,1769941839934,-3000.0,0.0003617,26]
[404197951,1769941839943,-3000.0,0.0003618,26]
[404197952,1769941839952,-3000.0,0.0003619,26]
[404197953,1769941839961,-3000.0,0.000362,26]
[404197954,1769941839970,-205.27402056,0.0003621,2]
[404197955,1769941839979,-3000.0,0.0003621,26]
[404197956,1769941839987,-3000.0,0.0003622,26]
[404197957,1769941840067,-710.0,0.00036225,11]
[404197958,1769941840076,-3000.0,0.0003623,27]
[404197959,1769941840084,-266.98854847,0.0003624,2]
[404197960,1769941840093,-3000.0,0.0003624,27]
[404197961,1769941840101,-3000.0,0.0003625,27]
[404197962,1769941840110,-3000.0,0.0003626,27]
[404197963,1769941840119,-3000.0,0.0003627,27]
[404197964,1769941840128,-3000.0,0.0003628,27]
[404197965,1769941840136,-3000.0,0.0003629,27]
[404197966,1769941840145,-5717.836521,0.000363,27]
[404197967,1769941840154,-418.95699322,0.00036305,60]
[404197968,1769941840162,-391.02652701,0.00036305,60]
[404197969,1769941840171,-418.95699322,0.00036305,60]
[404197970,1769941840179,-2425.33675779,0.000364,2]
[404197971,1769941840188,-188.9081696,0.00036411,30]
[404197972,1769941840196,-422.4,0.00036438,20]
[404197973,1769941840206,-155.498,0.00036439,2]
[404197974,1769941840214,-178745.43560263,0.0003644,30]
[404197975,1769941840227,-11218.946921,0.0003644,30]
[404197976,1769941840253,-3528.34950822,0.0003644,30]
[404197977,1769941840264,-837.43990435,0.0003644,30]
[404197985,1769941844388,-1257.05,0.0003643,10]
[404197986,1769941844397,-3607.93600715,0.0003644,30]
[404197987,1769941844407,-597.24550005,0.0003644,30]
[404197989,1769941846052,-888.05065874,0.0003644,30]
[404197990,1769941846129,-1646.49936051,0.0003644,30]
[404197991,1769942711652,178.48036795,0.00037581,31]
[404197992,1769942910730,157.59139177,0.00037581,120]
[404197993,1769942911250,454.10971408,0.00037581,120]
[404197994,1769942924723,500.0,0.00037581,120]
[404197995,1769942924963,361.45920873,0.00037581,120]
[404197996,1769942926453,574.41663064,0.00037581,120]
[404197997,1769942927305,500.0,0.00037581,120]
[404197998,1769942927617,500.0,0.00037581,120]
[404197999,1769942927891,500.0,0.00037581,120]
[404198000,1769942928130,208.7596038,0.00037581,120]
[404198001,1769942928302,390.7698704,0.00037581,120]
[404198002,1769942929517,372.58370503,0.00037581,120]
[404198003,1769942929678,480.20018237,0.00037581,120]
[404198004,1769942932839,500.0,0.00037581,120]
[404198005,1769942933086,500.0,0.00037581,120]
[404198006,1769942933319,500.0,0.00037581,120]
[404198007,1769942933561,500.0,0.00037581,120]
[404198008,1769942933747,500.0,0.00037581,120]
[404198009,1769942933793,500.0,0.00037581,120]
[404198010,1769942934001,168.11355392,0.00037581,120]
[404198011,1769942934041,500.0,0.00037581,120]
[404198012,1769942934297,500.0,0.00037581,120]
[404198013,1769942934568,500.0,0.00037581,120]
[404198014,1769942934803,500.0,0.00037581,120]
[404198015,1769942935072,500.0,0.00037581,120]
[404198016,1769942935303,500.0,0.00037581,120]
[404198017,1769942935684,500.0,0.00037581,120]
[404198018,1769942935916,500.0,0.00037581,120]
[404198019,1769942936146,500.0,0.00037581,120]
[404198020,1769942936380,500.0,0.00037581,120]
[404198021,1769942936607,500.0,0.00037581,120]
[404198022,1769942936832,500.0,0.00037581,120]
[404198023,1769942937082,500.0,0.00037581,120]
[404198024,1769942937318,500.0,0.00037581,120]
[404198025,1769942937625,500.46593284,0.00037581,120]
[404198026,1769942939840,154.68826583,0.00037581,120]
[404198027,1769942942699,529.25092462,0.00037581,120]
[404198028,1769942943128,375.67304487,0.00037581,120]
[404198029,1769942946190,258.80333501,0.00037581,120]
[404198030,1769942946281,500.0,0.00037581,120]
[404198031,1769942946630,265.7000094,0.00037581,120]
[404198032,1769942963919,175.38028544,0.00037581,120]
[404198033,1769942965344,512.75897623,0.00037581,120]
[404198034,1769942969664,192.96582049,0.00037581,120]
[404198035,1769942970306,161.31402887,0.00037581,120]
[404198036,1769942972259,173.46513344,0.00037581,120]
[404198037,1769942981184,296.24052064,0.00037581,120]
[404198038,1769942985945,7084.95,0.00037581,120]
[404198039,1769942986187,7084.95,0.00037581,120]
[404198040,1769942986461,7084.95,0.00037581,120]
[404198041,1769942986703,196.82076641,0.00037581,120]
[404198042,1769942986741,7084.95,0.00037581,120]
[404198043,1769942986958,7084.95,0.00037581,120]
[404198044,1769942987192,7084.95,0.00037581,120]
[404198045,1769942987425,7084.95,0.00037581,120]
[404198046,1769942987678,7084.95,0.00037581,120]
[404198047,1769942987920,7084.95,0.00037581,120]
[404198048,1769942988153,7084.95,0.00037581,120]
[404198049,1769942988396,7084.95,0.00037581,120]
[404198050,1769942988652,7084.95,0.00037581,120]
[404198051,1769942988904,7084.95,0.00037581,120]
[404198052,1769942989141,7084.95,0.00037581,120]
[404198053,1769942989373,7084.95,0.00037581,120]
[404198054,1769942989497,488.02894059,0.00037581,120]
[404198055,1769942989614,7084.95,0.00037581,120]
[404198056,1769942989850,7084.95,0.00037581,120]
[404198057,1769942990084,7084.95,0.00037581,120]
[404198058,1769942990331,7084.95,0.00037581,120]
[404198059,1769942990656,7084.95,0.00037581,120]
[404198060,1769942990897,7084.95,0.00037581,120]
[404198061,1769942991206,7084.95,0.00037581,120]
[404198062,1769942991466,7084.95,0.00037581,120]
[404198063,1769942991737,7085.12852746,0.00037581,120]
[404198064,1769942992413,469.81829158,0.00037581,120]
[404198065,1769942992733,163.66754043,0.00037581,120]
[404198066,1769943002256,439.78651719,0.00037581,120]
[404198067,1769943003032,500.0,0.00037581,120]
[404198068,1769943003265,500.0,0.00037581,120]
[404198069,1769943003508,500.0,0.00037581,120]
[404198070,1769943003769,500.0,0.00037581,120]
[404198071,1769943004018,500.0,0.00037581,120]
[404198072,1769943004280,500.0,0.00037581,120]
[404198073,1769943004518,500.0,0.00037581,120]
[404198074,1769943004757,500.0,0.00037581,120]
[404198075,1769943005007,500.0,0.00037581,120]
[404198076,1769943005640,500.0,0.00037581,120]
[404198077,1769943005951,500.0,0.00037581,120]
[404198078,1769943006640,500.0,0.00037581,120]
[404198079,1769943006915,500.0,0.00037581,120]
[404198080,1769943007149,500.0,0.00037581,120]
[404198081,1769943007412,500.0,0.00037581,120]
[404198082,1769943007572,3544.94,0.00037581,120]
[404198083,1769943007706,520.31240024,0.00037581,120]
[404198084,1769943007823,3544.94,0.00037581,120]
[404198085,1769943008063,3544.94,0.00037581,120]
[404198086,1769943008308,3544.94,0.00037581,120]
[404198087,1769943008550,3544.94,0.00037581,120]
[404198088,1769943008930,3544.94,0.00037581,120]
[404198089,1769943009506,3544.94,0.00037581,120]
[404198090,1769943009752,3544.94,0.00037581,120]
[404198091,1769943009793,264.831415,0.00037581,120]
[404198092,1769943009989,3544.94,0.00037581,120]
[404198093,1769943010226,3544.94,0.00037581,120]
[404198094,1769943010464,3544.94,0.00037581,120]
[404198095,1769943010721,3544.94,0.00037581,120]
[404198096,1769943010961,3544.94,0.00037581,120]
[404198097,1769943011203,3544.94,0.00037581,120]
[404198098,1769943011430,3544.94,0.00037581,120]
[404198099,1769943011668,3544.94,0.00037581,120]
[404198100,1769943011930,3544.94,0.00037581,120]
[404198101,1769943012166,3544.94,0.00037581,120]
[404198102,1769943012345,283.32379916,0.00037581,120]
[404198103,1769943012422,3544.94,0.00037581,120]
[404198104,1769943012699,3544.94,0.00037581,120]
[404198105,1769943012934,3544.94,0.00037581,120]
[404198106,1769943013186,3544.94,0.00037581,120]
[404198107,1769943013430,3544.94,0.00037581,120]
[404198108,1769943013678,3545.17135007,0.00037581,120]
[404198109,1769943015796,235.92657286,0.00037581,120]
[404198110,1769943022380,481.86209859,0.00037581,120]
[404198111,1769943028785,256.78806148,0.00037581,120]
[404198153,1769943031996,-458.49453881,0.00013173,2]
[404198155,1769943032006,-500.0,0.00013273,2]
[404198157,1769943032016,-502.30333023,0.00013273,2]
[404198158,1769943032026,-399.75562085,0.00013273,2]
[404198160,1769943032037,-500.0,0.00013273,2]
[404198161,1769943032046,-500.0,0.00013273,2]
[404198162,1769943032056,-500.0,0.00013273,2]
[404198163,1769943032065,-500.0,0.00013273,2]
[404198164,1769943032074,-500.0,0.00013273,2]